bitfinex/quotes_ETHUSD_20241129
["timestamp","ask_amount","ask_price","bid_price","bid_amount"]
[1732902148081,0.04559907,3589.8,3589.7,3.33569]
[1732902148231,2.7853,3590.3,3589.7,3.33569]
[1732902148531,0.04427789,3590.2,3589.7,3.33569]
[1732902148719,0.59857936,3590.2,3589.7,3.33569]
[1732902149028,0.04427789,3590.2,3589.9,0.55]
[1732902149389,2.78521,3590.4,3589.9,0.55]
[1732902149590,2.78521,3590.4,3589.8,2.78564]
[1732902149591,3.0,3590.8,3590.0,4.11781]
[1732902149790,0.56020956,3590.5,3590.1,0.55]
[1732902149990,0.04274343,3590.4,3590.1,0.55]
[1732902150229,2.82795343,3590.4,3590.1,0.55]
[1732902150896,2.7853,3590.3,3589.8,0.55]
[1732902151088,2.82799343,3590.4,3589.8,3.33564]
[1732902151292,0.04307089,3590.2,3590.1,0.55]
[1732902151502,0.04285869,3590.3,3590.1,3.33543]
[1732902151709,2.78496,3590.8,3590.3,0.55]
[1732902152420,3.0,3590.9,3590.5,0.55]
[1732902152421,0.54594096,3590.9,3590.5,0.55]
[1732902152737,2.78474,3591.0,3590.5,0.55]
[1732902152894,2.78467,3591.1,3590.5,3.33512]
[1732902153447,2.78459,3591.2,3590.6,2.78503]
[1732902153736,2.78444,3591.4,3590.7,0.55]
[1732902153937,2.78444,3591.4,3590.9,0.55]
[1732902155092,2.78429,3591.6,3590.9,0.55]
[1732902155294,2.78408,3591.9,3591.1,0.55]
[1732902155609,0.0440028,3591.5,3591.1,0.55]
[1732902155801,2.78426,3591.7,3591.1,0.55]
[1732902156005,0.04397642,3591.4,3591.1,3.33465]
[1732902156219,2.78428,3591.6,3591.1,0.55]
[1732902156425,0.04398551,3591.3,3591.1,0.55]
[1732902156625,0.0439935,3591.2,3591.1,0.55]
[1732902156827,0.0439935,3591.2,3591.0,0.7701]
[1732902157108,2.82864905,3591.2,3590.6,4.08844]
[1732902157826,0.04400905,3591.2,3590.9,0.55]
[1732902158049,2.78417,3591.8,3591.1,3.33466]
[1732902158343,2.78428,3591.6,3591.2,1.3608]
[1732902158843,0.59347979,3591.5,3591.2,0.55]
[1732902159054,2.78443,3591.4,3590.9,0.55]
[1732902159216,2.78452,3591.3,3590.9,0.55]
[1732902159417,0.0442255,3591.3,3590.9,0.55]
[1732902160144,0.0442255,3591.3,3591.2,4.12968]
[1732902160344,3.0,3591.9,3591.4,2.78442]
[1732902160502,3.0,3591.9,3591.3,0.55]
[1732902160503,2.78405,3591.9,3591.3,3.3345]
[1732902161051,2.78427,3591.6,3591.3,0.55]
[1732902161453,2.78416,3591.8,3591.3,0.55]
[1732902162162,0.54546365,3591.9,3591.3,0.55]
[1732902162455,2.78429,3591.6,3591.3,0.55]
[1732902162657,2.78416,3591.8,3591.3,0.55]
[1732902163145,0.0445331,3591.7,3591.3,0.55]
[1732902163351,2.8287231,3591.7,3591.3,0.55]
[1732902163842,2.7843,3591.6,3591.3,0.55]
[1732902164049,2.8287231,3591.7,3591.3,0.55]
[1732902164210,0.04432047,3591.5,3591.3,0.55]
[1732902164540,0.04278088,3591.4,3591.3,0.55]
[1732902164910,2.78413,3591.8,3591.3,0.55]
[1732902165264,0.04271792,3591.4,3591.3,0.55]
[1732902165410,2.78413,3591.8,3591.3,0.55]
[1732902165953,2.82707851,3591.7,3591.3,0.55]
[1732902166446,2.82705851,3591.7,3591.3,0.55]
[1732902166666,0.04285851,3591.7,3591.3,0.55]
[1732902167007,0.54546365,3591.9,3591.5,2.78434]
[1732902167239,0.54546365,3591.9,3591.6,0.55]
[1732902167445,0.04251573,3591.8,3591.6,0.55]
[1732902168151,0.04251573,3591.8,3591.5,2.78434]
[1732902168152,0.04251573,3591.8,3591.7,3.33419]
[1732902168335,0.04251573,3591.8,3591.7,4.999771]
[1732902168655,2.7833,3592.9,3592.2,2.78378]
[1732902168947,0.04339187,3592.8,3592.3,0.55]
[1732902169451,0.55493969,3592.5,3592.2,2.78378]
[1732902169952,0.04338184,3592.4,3592.2,2.78378]
[1732902170662,0.04338184,3592.4,3592.1,0.55]
[1732902170970,0.04338184,3592.4,3592.2,2.7838]
[1732902171325,0.04338184,3592.4,3592.3,0.7634]
[1732902171865,0.04338184,3592.4,3592.3,4.78524]
[1732902172220,2.78296,3593.3,3592.4,0.55]
[1732902172612,2.8259871,3593.2,3592.4,0.55]
[1732902172815,0.0429271,3593.2,3592.6,0.55]
[1732902173055,0.0429271,3593.2,3592.7,2.7834]
[1732902173228,0.61040056,3593.2,3592.6,0.55]
[1732902173447,0.61040056,3593.2,3592.9,2.78319]
[1732902173627,0.61040056,3593.2,3592.9,2.78326]
[1732902174683,0.61040056,3593.2,3592.8,3.33329]
[1732902175343,0.61040056,3593.2,3592.9,2.78325]
[1732902176677,0.0429271,3593.2,3593.0,2.78318]
[1732902176979,2.78282,3593.5,3593.0,2.78318]
[1732902177178,0.04338566,3593.1,3593.0,2.78318]
[1732902177677,0.04342759,3593.1,3592.8,3.33329]
[1732902177982,0.55836926,3593.3,3592.8,3.33329]
[1732902178276,0.0433335,3593.0,3592.8,0.55]
[1732902178460,0.55836926,3593.3,3592.8,3.33332]
[1732902179036,0.04374592,3593.2,3592.8,3.33333]
[1732902179235,0.04374592,3593.2,3592.8,0.55]
[1732902179460,3.34133926,3593.3,3592.8,0.55]
[1732902179874,0.0437916,3593.2,3592.8,3.33329]
[1732902180386,2.78319,3593.0,3592.3,2.78366]
[1732902180570,0.04373946,3593.1,3592.5,0.782]
[1732902180740,0.55836926,3593.3,3593.0,2.78318]
[1732902180939,0.55836926,3593.3,3592.8,2.78332]
[1732902181144,0.55836926,3593.3,3592.7,2.78342]
[1732902181338,0.55836926,3593.3,3593.1,2.78306]
[1732902181642,0.55836926,3593.3,3593.2,2.78303]
[1732902181880,0.0434834,3593.3,3593.2,3.33303]
[1732902182253,2.78244,3594.0,3593.4,2.78286]
[1732902182254,3.0,3593.9,3593.4,2.78286]
[1732902182451,3.0,3593.8,3593.4,2.78286]
[1732902182654,3.0,3594.2,3593.2,0.55]
[1732902183085,0.55038923,3593.7,3593.2,0.55]
[1732902183251,0.55038923,3593.7,3593.4,0.55]
[1732902183456,0.55038923,3593.7,3593.1,0.7667]
[1732902183682,3.33306923,3593.7,3593.2,0.55]
[1732902183888,0.55038923,3593.7,3593.2,0.55]
[1732902184053,2.78276,3593.6,3593.0,0.55]
[1732902184392,2.78281,3593.5,3593.0,0.55]
[1732902184601,2.78288,3593.4,3593.0,0.55]
[1732902184959,2.78272,3593.6,3593.0,0.55]
[1732902185183,2.7828,3593.5,3593.0,0.55]
[1732902185656,0.04362885,3593.4,3593.1,2.78306]
[1732902186218,0.04362885,3593.4,3593.0,3.33313]
[1732902186490,2.78273,3593.6,3593.1,2.7831]
[1732902186883,0.04365192,3593.5,3593.1,2.7831]
[1732902187697,3.33304923,3593.7,3593.1,2.7831]
[1732902187853,0.04360126,3593.4,3593.1,2.7831]
[1732902188192,0.04352815,3593.3,3593.1,2.7831]
[1732902188393,0.04352815,3593.3,3593.0,0.55]
[1732902188701,2.78299,3593.3,3593.0,0.55]
[1732902189005,0.04337852,3593.2,3593.0,0.55]
[1732902189295,2.78287,3593.5,3593.0,0.55]
[1732902189693,0.04339727,3593.4,3593.0,0.55]
[1732902189893,0.04339727,3593.4,3593.3,4.11885]
[1732902190134,0.55038923,3593.7,3593.3,1.3359]
[1732902190317,0.55038923,3593.7,3593.4,3.33287]
[1732902190834,0.04055928,3593.6,3593.5,3.85164876]
[1732902190996,0.04055928,3593.6,3593.5,4.26672777]
[1732902191194,0.14332205,3595.0,3593.9,1.3387]
[1732902191498,2.78189,3594.7,3593.9,1.3387]
[1732902191693,5.72760388,3595.2,3594.1,0.55]
[1732902191909,5.72760388,3595.2,3594.0,2.78241]
[1732902192145,2.78198,3594.6,3594.0,2.78241]
[1732902192436,0.54847058,3594.2,3593.9,0.7887]
[1732902192594,0.54847058,3594.2,3594.0,0.55]
[1732902192794,0.04082083,3594.1,3593.8,0.55]
[1732902193275,0.54847058,3594.2,3593.8,3.33256]
[1732902193542,0.54707895,3594.5,3594.4,2.7821]
[1732902193695,2.78149,3595.2,3594.6,2.7819]
[1732902193896,2.78149,3595.2,3594.5,0.55]
[1732902194244,2.78149,3595.2,3594.5,3.33197]
[1732902194408,2.78136,3595.4,3594.5,3.33201]
[1732902194622,2.78145,3595.3,3594.7,2.7818]
[1732902194941,2.78145,3595.3,3594.5,2.78201]
[1732902194942,3.0,3595.3,3594.5,2.78201]
[1732902195144,2.78156,3595.1,3594.5,2.78201]
[1732902195323,0.54501933,3594.8,3594.6,2.78193]
[1732902195517,0.54501933,3594.8,3594.3,3.59806]
[1732902195719,0.54501933,3594.8,3594.6,2.78194]
[1732902196241,0.54501933,3594.8,3594.7,2.78187]
[1732902196606,0.35046313,3596.5,3594.7,2.78187]
[1732902196607,2.78107,3595.8,3594.9,3.59461]
[1732902196811,2.78094,3595.9,3595.2,2.78148]
[1732902197026,2.80038386,3596.8,3595.2,2.78148]
[1732902197027,2.78102,3595.8,3595.2,2.78146]
[1732902197873,3.0,3595.7,3595.2,2.78146]
[1732902198169,0.55631939,3595.5,3595.3,2.78135]
[1732902198375,0.55631939,3595.5,3595.4,2.78133]
[1732902198959,1.113422,3596.7,3595.5,0.7998]
[1732902199140,2.78084,3596.1,3595.5,0.7998]
[1732902199356,2.78032,3596.7,3595.5,0.7998]
[1732902199737,2.78086,3596.1,3595.5,0.7998]
[1732902200167,2.78086,3596.1,3595.5,3.58102]
[1732902200867,0.54971534,3595.9,3595.5,3.58102]
[1732902201431,0.54971534,3595.9,3595.5,0.7998]
[1732902201630,3.33071534,3595.9,3595.5,0.7998]
[1732902202527,3.33069534,3595.9,3595.3,0.55]
[1732902202732,2.78116,3595.7,3595.3,0.55]
[1732902203329,2.78102,3595.8,3595.2,0.8044]
[1732902203536,2.78136,3595.4,3594.9,0.7666]
[1732902203770,2.78125,3595.6,3594.9,0.7666]
[1732902204065,2.78125,3595.6,3594.9,3.54828]
[1732902204270,2.78125,3595.6,3595.0,2.78162]
[1732902204604,0.54971534,3595.9,3595.0,2.78162]
[1732902204889,2.78123,3595.6,3594.9,4.181316]
[1732902205084,2.78123,3595.6,3594.9,1.399606]
[1732902205390,2.78123,3595.6,3595.0,2.78158]
[1732902205990,0.54971534,3595.9,3595.5,2.78124]
[1732902206184,2.78074,3596.2,3595.6,3.53265]
[1732902206493,5.78069,3596.3,3595.6,0.7515]
[1732902206786,2.78072,3596.2,3595.6,0.7515]
[1732902206992,2.78092,3596.0,3595.6,0.7515]
[1732902207748,2.78087,3596.0,3595.6,0.7515]
[1732902208205,2.78076,3596.2,3595.6,0.7515]
[1732902208419,2.78076,3596.2,3595.6,3.53264]
[1732902209371,2.78076,3596.2,3595.6,0.7515]
[1732902209567,2.78077,3596.2,3595.6,0.7515]
[1732902209766,0.56640575,3596.1,3595.6,0.7515]
[1732902210206,0.56640575,3596.1,3595.6,3.53266]
[1732902210543,0.56640575,3596.1,3595.7,2.78106]
[1732902211814,0.56640575,3596.1,3595.7,0.55]
[1732902212230,3.34719575,3596.1,3595.7,0.55]
[1732902212398,2.78091,3596.0,3595.7,0.55]
[1732902212928,2.78099,3595.9,3595.6,0.7515]
[1732902213075,2.78099,3595.9,3595.3,0.7571]
[1732902213282,3.34719575,3596.1,3595.4,0.55]
[1732902213283,2.78102,3595.8,3595.4,0.55]
[1732902213883,0.56640575,3596.1,3595.4,0.55]
[1732902214097,2.78107,3595.8,3595.4,0.55]
[1732902214577,2.78102,3595.9,3595.4,0.55]
[1732902215140,2.78111,3595.7,3595.4,0.55]
[1732902215618,2.78122,3595.6,3595.3,0.7571]
[1732902216336,0.56640575,3596.1,3595.3,0.7571]
[1732902216630,2.78102,3595.8,3595.3,0.7571]
[1732902217321,2.78118,3595.6,3595.3,0.7571]
[1732902217498,2.78102,3595.8,3595.3,0.7571]
[1732902217924,2.78102,3595.8,3595.3,3.5385]
[1732902218105,2.78114,3595.7,3595.3,0.7571]
[1732902218292,2.78096,3595.9,3595.3,0.7571]
[1732902218497,2.78115,3595.7,3595.3,0.7571]
[1732902218698,2.7812,3595.6,3595.3,0.7571]
[1732902220627,2.78097,3595.9,3595.3,0.7571]
[1732902220796,2.78116,3595.7,3595.3,0.7571]
[1732902220994,2.78123,3595.6,3595.3,0.7571]
[1732902224307,2.78113,3595.7,3595.3,0.7571]
[1732902224608,2.78118,3595.6,3595.3,0.7571]
[1732902225108,2.78111,3595.7,3595.3,0.7571]
[1732902225316,0.56640575,3596.1,3595.0,0.55]
[1732902225317,2.78086,3596.0,3595.0,0.55]
[1732902225522,2.78126,3595.5,3595.0,0.55]
[1732902225807,2.78086,3596.0,3595.0,0.55]
[1732902226185,2.78134,3595.4,3595.0,0.55]
[1732902226446,2.78117,3595.6,3595.0,0.55]
[1732902226602,2.78133,3595.5,3595.0,0.55]
[1732902226802,2.78135,3595.4,3595.0,0.55]
[1732902227042,0.56640575,3596.1,3594.9,3.5394]
[1732902227043,2.78149,3595.2,3594.9,0.7577]
[1732902227341,2.78134,3595.4,3594.9,0.7577]
[1732902227547,2.78141,3595.3,3594.9,0.7577]
[1732902227907,2.78156,3595.1,3594.9,0.7577]
[1732902228407,2.78141,3595.3,3594.9,0.7577]
[1732902228716,2.78149,3595.2,3594.9,0.7577]
[1732902228917,2.78159,3595.1,3594.5,2.782]
[1732902229944,3.33730243,3595.3,3594.5,2.782]
[1732902230151,3.33730243,3595.3,3594.7,2.78187]
[1732902230308,2.78158,3595.1,3594.5,2.782]
[1732902230640,0.55587243,3595.3,3594.9,0.8296]
[1732902230866,0.55587243,3595.3,3594.9,3.61131]
[1732902231065,3.0,3596.0,3595.4,2.78131]
[1732902231066,2.78092,3596.0,3595.4,2.78131]
[1732902231229,2.78092,3596.0,3595.5,0.8068]
[1732902231430,2.78072,3596.2,3595.5,3.58798]
[1732902231725,5.56048,3596.8,3595.6,2.78117]
[1732902231958,2.78032,3596.7,3595.6,0.55]
[1732902232158,2.78079,3596.1,3595.6,0.55]
[1732902232461,0.55448431,3595.9,3595.6,0.55]
[1732902232869,0.55448431,3595.9,3595.5,0.8068]
[1732902233030,0.55448431,3595.9,3595.6,0.55]
[1732902233364,3.0,3596.3,3595.8,2.78099]
[1732902233523,5.56048,3596.8,3595.8,2.78099]
[1732902233726,2.7806,3596.4,3595.8,2.78099]
[1732902233927,2.7806,3596.4,3595.6,3.33116]
[1732902233928,5.78068,3596.3,3595.6,3.33116]
[1732902234231,5.78068,3596.3,3595.7,2.78108]
[1732902235065,0.56639315,3596.1,3595.6,3.33116]
[1732902235270,0.56639315,3596.1,3595.7,2.78108]
[1732902235825,0.56639315,3596.1,3595.6,3.33116]
[1732902236667,3.34718315,3596.1,3595.6,0.55]
[1732902237745,3.34718315,3596.1,3595.6,3.33115]
[1732902237951,0.14516111,3597.0,3595.6,3.33115]
[1732902238168,2.78114,3595.7,3595.0,3.7868]
[1732902238372,2.78114,3595.7,3595.1,3.0]
[1732902238538,2.78098,3595.9,3595.2,2.78147]
[1732902238745,2.7811,3595.7,3595.1,3.0]
[1732902239536,2.78118,3595.6,3595.0,3.56838]
[1732902239731,2.78118,3595.6,3595.1,0.55]
[1732902239945,2.7811,3595.7,3595.1,3.33156]
[1732902240360,2.78126,3595.5,3595.1,0.55]
[1732902240569,2.7811,3595.7,3595.1,3.33155]
[1732902241936,2.78127,3595.5,3595.0,0.7868]
[1732902242267,2.78126,3595.5,3594.8,3.58389]
[1732902242647,2.78126,3595.5,3594.9,2.78167]
[1732902242830,2.78113,3595.7,3594.9,2.78167]
[1732902243037,2.78113,3595.7,3595.1,2.78151]
[1732902243258,2.78107,3595.8,3595.4,0.7585]
[1732902244078,0.56843821,3595.5,3595.4,0.7585]
[1732902244281,0.56843821,3595.5,3594.9,0.7585]
[1732902244442,0.56843821,3595.5,3595.0,0.55]
[1732902244636,0.56843821,3595.5,3595.1,2.78153]
[1732902244991,3.34971821,3595.5,3595.0,0.55]
[1732902245478,3.34970821,3595.5,3594.9,3.54021]
[1732902245682,2.78158,3595.1,3594.5,2.78196]
[1732902245880,2.78141,3595.3,3594.6,3.53664]
[1732902246069,2.78148,3595.2,3594.6,3.53664]
[1732902246490,2.78153,3595.2,3594.6,0.7547]
[1732902246789,2.78157,3595.1,3594.6,0.7547]
[1732902246988,2.78165,3595.0,3594.6,0.7547]
[1732902247148,2.78153,3595.2,3594.6,0.7547]
[1732902247484,0.56843821,3595.5,3593.8,5.58290386]
[1732902247485,2.78181,3594.8,3594.2,2.78223]
[1732902247686,2.78181,3594.8,3594.3,0.7536]
[1732902248786,2.7817,3595.0,3594.3,0.7536]
[1732902248949,2.7817,3595.0,3594.3,0.78141895]
[1732902249282,2.7817,3595.0,3594.3,3.53577]
[1732902249488,2.78173,3594.9,3594.3,3.53577]
[1732902249986,2.80038386,3595.7,3594.3,3.53577]
[1732902250162,0.56763479,3594.7,3594.3,3.53577]
[1732902250363,2.78126,3595.5,3594.6,0.8206]
[1732902250568,2.78126,3595.5,3594.9,2.78171]
[1732902250859,2.781,3595.9,3595.2,2.78148]
[1732902251280,2.781,3595.9,3595.3,0.26006251]
[1732902251500,2.78097,3595.9,3595.2,2.78148]
[1732902251790,2.78101,3595.9,3595.3,0.360208]
[1732902252491,2.78079,3596.1,3595.5,2.7812]
[1732902252863,0.55317135,3595.9,3595.5,2.7812]
[1732902253262,0.55317135,3595.9,3595.4,0.7528]
[1732902253458,0.55317135,3595.9,3595.4,3.53412]
[1732902253682,0.55317135,3595.9,3595.5,0.82149521]
[1732902253856,0.55317135,3595.9,3595.5,0.40542154]
[1732902254491,3.78069,3596.3,3595.7,2.78105]
[1732902254999,1.0,3596.3,3595.8,0.4160027]
[1732902255151,1.0,3596.3,3595.9,3.56989]
[1732902255350,1.0,3596.3,3595.9,0.789]
[1732902255969,1.0,3596.3,3595.9,3.5699]
[1732902256167,1.0,3596.3,3596.1,2.78077]
[1732902256355,1.0,3596.3,3596.0,0.635091]
[1732902256555,0.03937253,3596.2,3596.0,0.635091]
[1732902256978,1.0,3596.3,3596.0,0.635091]
[1732902257186,0.03937253,3596.2,3596.1,2.78077]
[1732902257390,0.03937253,3596.2,3596.1,4.44522558]
[1732902257605,1.0,3596.3,3596.1,4.44522558]
[1732902257771,0.03943971,3596.2,3596.1,1.66445558]
[1732902257971,1.0,3596.3,3596.1,1.66445558]
[1732902258266,0.03943971,3596.2,3596.1,1.66445558]
[1732902258592,0.03930814,3596.2,3596.1,0.41587848]
[1732902258986,1.0,3596.3,3596.1,0.41587848]
[1732902259186,0.03930814,3596.2,3596.1,0.41587848]
[1732902259383,1.0,3596.3,3596.1,0.41587848]
[1732902259895,0.03930814,3596.2,3596.1,0.41587848]
[1732902260273,1.0,3596.3,3596.1,0.41587848]
[1732902260607,0.03934262,3596.2,3596.1,0.41587848]
[1732902260763,2.82005262,3596.2,3596.1,0.41587848]
[1732902262318,5.62043648,3596.2,3596.1,0.41587848]
[1732902262871,8.62043648,3596.2,3596.1,0.41587848]
[1732902263505,12.62043648,3596.2,3596.1,0.41587848]
[1732902263924,12.62043648,3596.2,3596.1,0.21176779]
[1732902266043,12.62043648,3596.2,3596.1,7.79e-06]
[1732902266246,12.86128029,3596.2,3596.1,7.79e-06]
[1732902267632,3.0,3596.1,3594.5,0.55]
[1732902267807,2.78183,3594.8,3594.5,0.55]
[1732902268339,0.03760538,3594.7,3594.5,0.55]
[1732902268560,2.81949538,3594.7,3594.5,0.55]
[1732902268859,0.03755161,3594.6,3594.5,0.55]
[1732902269419,0.03755161,3594.6,3594.4,0.8096]
[1732902269615,2.78233,3594.1,3594.0,1.30133841]
[1732902269839,2.7828,3593.5,3593.4,0.51963841]
[1732902270043,2.7828,3593.5,3592.9,0.1]
[1732902270044,2.7827,3593.7,3593.0,0.51963841]
[1732902270224,2.7827,3593.7,3593.1,4.08098841]
[1732902270225,0.03618323,3593.5,3593.1,4.08098841]
[1732902270442,2.81963596,3593.6,3593.2,0.69642384]
[1732902270618,0.03683325,3593.4,3593.2,3.47942384]
[1732902270809,0.5470211,3594.1,3593.6,2.78267]
[1732902271013,0.5470211,3594.1,3593.7,3.56088]
[1732902271253,0.03715607,3594.0,3593.7,3.56093]
[1732902271427,0.03715607,3594.0,3593.8,0.356093]
[1732902271624,0.5470211,3594.1,3593.8,0.356093]
[1732902271845,0.03710227,3593.9,3593.8,0.356093]
[1732902272069,0.5470211,3594.1,3593.8,0.356093]
[1732902272235,0.03710227,3593.9,3593.8,0.356093]
[1732902272446,0.5470211,3594.1,3593.8,0.356093]
[1732902272755,0.03710227,3593.9,3593.8,0.356093]
[1732902272917,0.5470211,3594.1,3593.7,0.7783]
[1732902273559,0.03715607,3594.0,3593.7,0.7783]
[1732902276117,0.03715607,3594.0,3593.7,3.56093]
[1732902276944,0.03715607,3594.0,3593.7,0.7783]
[1732902278856,0.03715607,3594.0,3593.9,2.78249]
[1732902279023,0.03715607,3594.0,3593.7,3.56088]
[1732902279225,0.03715607,3594.0,3593.7,3.916968]
[1732902279763,0.03715607,3594.0,3593.7,0.7783]
[1732902280057,0.5470211,3594.1,3593.7,0.7783]
[1732902280463,0.03715607,3594.0,3593.7,0.7783]
[1732902281223,2.78255,3593.9,3593.7,0.7783]
[1732902281540,0.03715607,3594.0,3593.7,0.7783]
[1732902281858,0.5470211,3594.1,3593.7,0.7783]
[1732902282081,0.5470211,3594.1,3594.0,0.55]
[1732902282232,0.5470211,3594.1,3593.8,0.55]
[1732902282433,0.5470211,3594.1,3593.7,0.7783]
[1732902282434,0.58414546,3594.1,3593.7,0.7783]
[1732902282826,2.78246,3594.0,3593.4,0.7856]
[1732902283163,2.78246,3594.0,3593.4,3.56841]
[1732902283371,0.03701677,3593.9,3593.4,3.56841]
[1732902283538,2.81950677,3593.9,3593.4,0.7856]
[1732902285029,2.81950677,3593.9,3593.4,3.56847]
[1732902285533,0.03701677,3593.9,3593.4,0.7856]
[1732902285952,2.81950677,3593.9,3593.4,0.7856]
[1732902286565,2.81950677,3593.9,3592.9,3.1]
[1732902286566,2.78272,3593.6,3593.1,0.8025]
[1732902286776,2.78285,3593.5,3593.1,1.3525]
[1732902287064,2.81971871,3593.5,3593.1,1.3525]
[1732902287570,0.03686871,3593.5,3593.1,1.3525]
[1732902287865,0.03686871,3593.5,3593.1,4.1356]
[1732902290367,3.37730678,3593.5,3592.9,0.1]
[1732902290535,2.78288,3593.4,3593.0,0.41549807]
[1732902290735,2.78288,3593.4,3592.9,0.1]
[1732902290939,0.03542162,3593.3,3592.9,0.1]
[1732902291354,0.03542162,3593.3,3593.0,0.41566803]
[1732902291577,0.03542162,3593.3,3593.0,2.78318]
[1732902291928,0.55760807,3593.5,3593.0,2.78318]
[1732902292269,0.55760807,3593.5,3593.1,0.41565865]
[1732902292473,0.03535821,3593.4,3593.2,0.41587204]
[1732902292639,0.03535821,3593.4,3593.0,2.78318]
[1732902292835,0.03535821,3593.4,3593.1,0.41588096]
[1732902293069,2.81827821,3593.4,3592.9,0.1]
[1732902293269,0.03535821,3593.4,3593.0,0.41588631]
[1732902293472,0.03535821,3593.4,3593.1,0.41588631]
[1732902293765,0.03535821,3593.4,3592.9,0.1]
[1732902293963,0.03535821,3593.4,3593.0,0.41595564]
[1732902294177,0.03535821,3593.4,3593.1,0.41595564]
[1732902294352,0.03535821,3593.4,3592.9,0.1]
[1732902294712,0.03535821,3593.4,3593.0,3.19921105]
[1732902294853,0.03535821,3593.4,3593.1,0.41604105]
[1732902295058,0.03535821,3593.4,3593.0,2.78317]
[1732902295229,0.03535821,3593.4,3593.1,0.41604106]
[1732902295576,0.03535821,3593.4,3592.9,2.88326]
[1732902295778,2.81823821,3593.4,3593.0,0.41615867]
[1732902295989,2.81823821,3593.4,3593.1,0.41615867]
[1732902296129,2.81823821,3593.4,3592.9,2.88325]
[1732902296334,2.81823821,3593.4,3593.0,0.41624549]
[1732902296576,2.81823821,3593.4,3593.1,0.41624549]
[1732902296730,2.81823821,3593.4,3592.9,2.88325]
[1732902297041,0.03535821,3593.4,3593.0,0.41624392]
[1732902297242,0.03535821,3593.4,3593.1,0.41624392]
[1732902297471,0.03535821,3593.4,3593.2,0.41624392]
[1732902297675,0.03535821,3593.4,3593.0,2.78318]
[1732902297826,0.03535821,3593.4,3593.1,0.41633748]
[1732902298031,0.03535821,3593.4,3593.2,0.41633748]
[1732902298332,0.03535821,3593.4,3593.0,2.78318]
[1732902298557,0.03535821,3593.4,3593.1,0.41646639]
[1732902298756,0.03535821,3593.4,3593.2,0.41646639]
[1732902299081,0.03535821,3593.4,3593.0,2.78318]
[1732902299283,0.03535821,3593.4,3593.1,0.41646885]
[1732902299479,0.03535821,3593.4,3593.2,0.41646885]
[1732902299791,0.03535821,3593.4,3593.3,0.41646885]
[1732902300148,0.03535821,3593.4,3592.9,2.88322]
[1732902300682,0.03535821,3593.4,3593.0,0.4166264]
[1732902300683,2.78301,3593.3,3593.0,0.4166264]
[1732902300858,0.03535821,3593.4,3592.9,0.1]
[1732902301193,0.03523791,3593.2,3593.0,0.41665726]
[1732902301396,5.78222,3594.3,3593.0,0.41665726]
[1732902301397,0.03528961,3593.3,3593.2,4.12913]
[1732902301604,2.78221,3594.3,3593.4,0.7961]
[1732902301758,2.78253,3593.9,3593.5,0.93741896]
[1732902301956,2.78253,3593.9,3593.2,3.33297]
[1732902301957,2.78264,3593.7,3593.6,0.41665726]
[1732902302587,0.03381374,3593.7,3593.0,2.78316]
[1732902302754,0.03381374,3593.7,3593.6,2.78272]
[1732902302966,0.55270645,3594.2,3593.7,3.33258]
[1732902303153,0.55270645,3594.2,3593.8,3.19913519]
[1732902303362,0.55270645,3594.2,3593.9,0.41658519]
[1732902303603,0.03243734,3594.1,3593.8,2.78255]
[1732902303810,0.03243734,3594.1,3593.9,0.41657657]
[1732902303981,0.03243734,3594.1,3593.8,2.78255]
[1732902304295,0.03243734,3594.1,3593.9,0.41658931]
[1732902304503,0.03243734,3594.1,3593.7,0.55]
[1732902304792,0.03243734,3594.1,3593.8,0.41659281]
[1732902305093,0.03243734,3594.1,3593.9,0.41659281]
[1732902305389,0.03243734,3594.1,3594.0,0.41659281]
[1732902305592,0.03243734,3594.1,3594.0,0.4165657]
[1732902305805,0.03243734,3594.1,3594.0,0.416562]
[1732902306007,0.03243734,3594.1,3593.9,2.78244]
[1732902306160,0.03243734,3594.1,3593.7,3.33259]
[1732902306362,0.03243734,3594.1,3593.8,3.19913485]
[1732902306698,0.03243734,3594.1,3593.7,0.55]
[1732902306699,0.03243734,3594.1,3593.9,3.19905485]
[1732902306995,0.03243734,3594.1,3594.0,0.41657485]
[1732902307295,0.03243734,3594.1,3594.0,4.03198485]
[1732902307594,0.55270645,3594.2,3594.0,1.34148034]
[1732902307800,0.55270645,3594.2,3594.1,0.41657485]
[1732902307953,0.55270645,3594.2,3593.4,0.833]
[1732902308153,2.78272,3593.6,3593.5,0.41656471]
[1732902308560,2.78299,3593.3,3593.1,0.52078713]
[1732902308784,2.78295,3593.4,3593.2,0.41665442]
[1732902308989,2.78272,3593.6,3592.9,0.1]
[1732902309173,2.78292,3593.4,3593.0,0.4166727]
[1732902309376,2.78292,3593.4,3593.1,0.4166727]
[1732902309715,2.78292,3593.4,3592.9,0.1]
[1732902309716,0.0317372,3593.3,3592.9,0.1]
[1732902310010,0.0317372,3593.3,3593.0,0.41666408]
[1732902310301,0.0317372,3593.3,3593.1,0.41666408]
[1732902310470,0.0317372,3593.3,3593.2,0.41666408]
[1732902310796,0.03110984,3593.3,3593.2,0.41666408]
[1732902311175,0.03064092,3593.3,3593.2,0.41666408]
[1732902311365,0.56988052,3593.3,3593.2,0.41666408]
[1732902311705,0.6008855,3593.3,3593.2,0.67710411]
[1732902312063,0.6008855,3593.3,3593.2,5.17626052]
[1732902312396,0.03100498,3593.3,3593.2,5.17626052]
[1732902312701,0.14309649,3594.8,3593.2,5.17626052]
[1732902312702,0.55751845,3593.8,3593.2,5.69714286]
[1732902312909,0.55751845,3593.8,3593.4,2.7828]
[1732902313193,0.02998959,3593.7,3593.6,2.78272]
[1732902313362,0.02998959,3593.7,3593.6,3.98070645]
[1732902313581,2.78192,3594.7,3594.0,2.78239]
[1732902313787,2.78171,3594.9,3594.2,2.78223]